[Event "Late-Titled-Tuesday-Blitz-February-27-2024"]
[Site "Chess.com"]
[Date "2024.02.27"]
[Round "9"]
[White "KATPAH"]
[Black "Joachim100x"]
[Result "1-0"]
[WhiteElo "2661"]
[BlackElo "2483"]
[TimeControl "180+1"]
[EndTime "15:44:06 PST"]
[Termination "KATPAH won by resignation"]

1. e4 {[%clk 0:03:00.1]} 1... d5 {[%clk 0:02:47.5]} 2. exd5 {[%clk 0:02:55.4]}
2... Qxd5 {[%clk 0:02:45.4]} 3. Nc3 {[%clk 0:02:54.4]} 3... Qd6 {[%clk
0:02:45.7]} 4. Nf3 {[%clk 0:02:54.7]} 4... c6 {[%clk 0:02:45.2]} 5. d4 {[%clk
0:02:55.2]} 5... Nf6 {[%clk 0:02:45.5]} 6. Be2 {[%clk 0:02:55.6]} 6... Bf5
{[%clk 0:02:45.7]} 7. O-O {[%clk 0:02:56]} 7... e6 {[%clk 0:02:46.1]} 8. Ne5
{[%clk 0:02:56.3]} 8... Be7 {[%clk 0:02:46.3]} 9. Bf4 {[%clk 0:02:56.6]} 9...
Qd8 {[%clk 0:02:46.6]} 10. g4 {[%clk 0:02:49.2]} 10... Bg6 {[%clk 0:02:46.4]}
11. h4 {[%clk 0:02:45.3]} 11... h5 {[%clk 0:02:36.6]} 12. g5 {[%clk 0:02:38.5]}
12... Nd5 {[%clk 0:02:36.4]} 13. Nxg6 {[%clk 0:02:38.2]} 13... fxg6 {[%clk
0:02:36]} 14. Nxd5 {[%clk 0:02:37]} 14... Qxd5 {[%clk 0:02:33.3]} 15. Be5 {[%clk
0:02:33.5]} 15... O-O {[%clk 0:02:31.8]} 16. Qd3 {[%clk 0:02:28.7]} 16... Nd7
{[%clk 0:02:30.3]} 17. Qxg6 {[%clk 0:02:06.2]} 17... Nxe5 {[%clk 0:02:27]} 18.
dxe5 {[%clk 0:02:07.1]} 18... Qxe5 {[%clk 0:02:26.4]} 19. Bd3 {[%clk 0:02:07.5]}
19... Bd6 {[%clk 0:02:16.1]} 20. Qh7+ {[%clk 0:01:57.2]} 20... Kf7 {[%clk
0:02:15.9]} 21. f4 {[%clk 0:01:57.9]} 21... Qe3+ {[%clk 0:02:08.6]} 22. Kg2
{[%clk 0:01:56.2]} 22... Ke7 {[%clk 0:01:56.5]} 23. Qxg7+ {[%clk 0:01:51.8]}
23... Rf7 {[%clk 0:01:55.8]} 24. Qc3 {[%clk 0:01:36.8]} 24... Rxf4 {[%clk
0:01:50.5]} 25. Rxf4 {[%clk 0:01:27.4]} 25... Qxf4 {[%clk 0:01:44.7]} 26. Qg7+
{[%clk 0:01:16.5]} 26... Kd8 {[%clk 0:01:29.3]} 27. Qf6+ {[%clk 0:01:16.1]}
27... Kc7 {[%clk 0:01:14]} 28. Qxf4 {[%clk 0:01:12.8]} 28... Bxf4 {[%clk
0:01:14.1]} 29. Rf1 {[%clk 0:01:13.5]} 29... Rf8 {[%clk 0:01:11.9]} 30. Be2
{[%clk 0:01:02.5]} 30... e5 {[%clk 0:01:08.9]} 31. Bxh5 {[%clk 0:00:59.5]} 31...
Rg8 {[%clk 0:01:09.1]} 32. Kf3 {[%clk 0:00:55.6]} 32... Rd8 {[%clk 0:01:03.6]}
33. Rf2 {[%clk 0:00:50.8]} 33... Rd4 {[%clk 0:00:54.3]} 34. Re2 {[%clk
0:00:50.1]} 34... Kd6 {[%clk 0:00:51.3]} 35. Bg4 {[%clk 0:00:42.8]} 35... Ke7
{[%clk 0:00:50.8]} 36. Bf5 {[%clk 0:00:41.8]} 36... Kf7 {[%clk 0:00:46.9]} 37.
Kg4 {[%clk 0:00:26.8]} 37... Kg7 {[%clk 0:00:46.8]} 38. h5 {[%clk 0:00:23.9]}
38... Bc1+ {[%clk 0:00:45.6]} 39. Re4 {[%clk 0:00:21.6]} 39... Rd2 {[%clk
0:00:22.9]} 40. h6+ {[%clk 0:00:20.6]} 40... Kf7 {[%clk 0:00:22.5]} 41. g6+
{[%clk 0:00:18.7]} 41... Kf6 {[%clk 0:00:22.9]} 42. g7 {[%clk 0:00:19]} 42...
Rg2+ {[%clk 0:00:22.7]} 43. Kf3 {[%clk 0:00:19.7]} 43... Rg1 {[%clk 0:00:17.4]}
44. Rg4 {[%clk 0:00:18.5]} 44... Rf1+ {[%clk 0:00:12.6]} 45. Ke2 {[%clk
0:00:18.7]} 45... Rxf5 {[%clk 0:00:11.9]} 46. g8=Q {[%clk 0:00:18.8]} 1-0

[Event "Late-Titled-Tuesday-Blitz-February-27-2024"]
[Site "Chess.com"]
[Date "2024.02.27"]
[Round "9"]
[White "chessdjw"]
[Black "TenisMaster"]
[Result "1-0"]
[WhiteElo "2779"]
[BlackElo "2917"]
[TimeControl "180+1"]
[EndTime "15:44:11 PST"]
[Termination "chessdjw won on time"]

1. d4 {[%clk 0:03:00]} 1... Nf6 {[%clk 0:02:59.6]} 2. c4 {[%clk 0:02:59.4]} 2...
e6 {[%clk 0:03:00]} 3. Nc3 {[%clk 0:02:57]} 3... Bb4 {[%clk 0:02:59]} 4. e3
{[%clk 0:02:49.5]} 4... O-O {[%clk 0:02:58]} 5. Nf3 {[%clk 0:02:45.1]} 5... d5
{[%clk 0:02:55.9]} 6. Bd2 {[%clk 0:02:44.9]} 6... b6 {[%clk 0:02:43]} 7. cxd5
{[%clk 0:02:43.7]} 7... exd5 {[%clk 0:02:42.6]} 8. Rc1 {[%clk 0:02:44.1]} 8...
Re8 {[%clk 0:02:35.9]} 9. Nb5 {[%clk 0:02:36.7]} 9... Bxd2+ {[%clk 0:02:30]} 10.
Nxd2 {[%clk 0:02:34.9]} 10... c6 {[%clk 0:02:30.9]} 11. Nc3 {[%clk 0:02:34.2]}
11... Bf5 {[%clk 0:02:23.1]} 12. Be2 {[%clk 0:02:32.1]} 12... Nbd7 {[%clk
0:02:21.3]} 13. O-O {[%clk 0:02:32.3]} 13... Re6 {[%clk 0:02:18.8]} 14. b4
{[%clk 0:02:10.6]} 14... h5 {[%clk 0:01:54.7]} 15. Qb3 {[%clk 0:02:08.8]} 15...
b5 {[%clk 0:01:51.2]} 16. a4 {[%clk 0:02:07.1]} 16... a6 {[%clk 0:01:51]} 17. a5
{[%clk 0:02:00.4]} 17... Ng4 {[%clk 0:01:45]} 18. h3 {[%clk 0:01:51.7]} 18...
Qg5 {[%clk 0:01:23.1]} 19. Nxd5 {[%clk 0:01:06]} 19... cxd5 {[%clk 0:01:17]} 20.
Qxd5 {[%clk 0:01:05.7]} 20... Rd8 {[%clk 0:01:17]} 21. hxg4 {[%clk 0:01:05.2]}
21... hxg4 {[%clk 0:01:09.1]} 22. Bd3 {[%clk 0:00:22]} 22... Ne5 {[%clk
0:00:28.9]} 23. Qxd8+ {[%clk 0:00:21.4]} 23... Qxd8 {[%clk 0:00:29.6]} 24. Bxf5
{[%clk 0:00:22]} 24... Rc6 {[%clk 0:00:29.9]} 25. dxe5 {[%clk 0:00:20.3]} 25...
Qc7 {[%clk 0:00:19.5]} 26. Rxc6 {[%clk 0:00:19.9]} 26... Qxc6 {[%clk 0:00:20.4]}
27. Ne4 {[%clk 0:00:19.1]} 27... g6 {[%clk 0:00:11.9]} 28. Nf6+ {[%clk
0:00:17.4]} 28... Kg7 {[%clk 0:00:12.4]} 29. Bxg4 {[%clk 0:00:17.9]} 29... Qc4
{[%clk 0:00:12.2]} 30. Rd1 {[%clk 0:00:16.8]} 30... Qxb4 {[%clk 0:00:10.5]} 31.
Bf3 {[%clk 0:00:13.8]} 31... Qxa5 {[%clk 0:00:10]} 32. g4 {[%clk 0:00:12.9]}
32... b4 {[%clk 0:00:10.3]} 33. g5 {[%clk 0:00:12.5]} 33... b3 {[%clk
0:00:10.7]} 34. Rd5 {[%clk 0:00:09.2]} 34... Qc7 {[%clk 0:00:06.7]} 35. Be4
{[%clk 0:00:08.9]} 35... Qc8 {[%clk 0:00:04.9]} 36. Kg2 {[%clk 0:00:08.6]} 36...
b2 {[%clk 0:00:04.2]} 37. Rd7 {[%clk 0:00:08.7]} 37... Qc4 {[%clk 0:00:02]} 38.
Rd8 {[%clk 0:00:05.8]} 38... Qxe4+ {[%clk 0:00:01.9]} 39. Nxe4 {[%clk
0:00:06.7]} 39... b1=Q {[%clk 0:00:02.3]} 40. Nf6 {[%clk 0:00:07.4]} 40... Qb7+
{[%clk 0:00:02.3]} 41. Kg3 {[%clk 0:00:06.8]} 1-0

[Event "Late-Titled-Tuesday-Blitz-February-27-2024"]
[Site "Chess.com"]
[Date "2024.02.27"]
[Round "9"]
[White "chessydotcom"]
[Black "GlavkonVVS"]
[Result "0-1"]
[WhiteElo "2322"]
[BlackElo "2528"]
[TimeControl "180+1"]
[EndTime "15:44:12 PST"]
[Termination "GlavkonVVS won by resignation"]

1. e4 {[%clk 0:03:00.9]} 1... Nf6 {[%clk 0:03:00.2]} 2. e5 {[%clk 0:03:00.9]}
2... Nd5 {[%clk 0:03:00.4]} 3. d4 {[%clk 0:03:01.1]} 3... d6 {[%clk 0:03:00.5]}
4. c4 {[%clk 0:03:01.7]} 4... Nb6 {[%clk 0:03:00.9]} 5. f4 {[%clk 0:03:02.4]}
5... dxe5 {[%clk 0:03:01.1]} 6. fxe5 {[%clk 0:03:03.3]} 6... c5 {[%clk
0:03:01.7]} 7. d5 {[%clk 0:02:59]} 7... g6 {[%clk 0:03:01.8]} 8. Bf4 {[%clk
0:02:56.6]} 8... Bg7 {[%clk 0:03:02]} 9. Bd3 {[%clk 0:02:53.8]} 9... O-O {[%clk
0:03:01.5]} 10. Nf3 {[%clk 0:02:51.7]} 10... Bg4 {[%clk 0:03:01.4]} 11. O-O
{[%clk 0:02:51.5]} 11... e6 {[%clk 0:03:01.6]} 12. d6 {[%clk 0:02:48.3]} 12...
Nc6 {[%clk 0:03:01.8]} 13. Re1 {[%clk 0:02:32.7]} 13... Nd7 {[%clk 0:03:01]} 14.
Be2 {[%clk 0:01:54.7]} 14... Bxf3 {[%clk 0:02:59.3]} 15. Bxf3 {[%clk 0:01:55.6]}
15... Ndxe5 {[%clk 0:02:57.4]} 16. Nc3 {[%clk 0:01:44.7]} 16... Nxf3+ {[%clk
0:02:55.4]} 17. Qxf3 {[%clk 0:01:45.6]} 17... e5 {[%clk 0:02:51.7]} 18. Bg3
{[%clk 0:01:41]} 18... Qxd6 {[%clk 0:02:51.6]} 19. Rad1 {[%clk 0:01:41.1]} 19...
Qe6 {[%clk 0:02:47.4]} 20. Nd5 {[%clk 0:01:39.7]} 20... Rad8 {[%clk 0:02:40.9]}
21. Qa3 {[%clk 0:01:36.2]} 21... b6 {[%clk 0:02:19.6]} 22. Qf3 {[%clk
0:01:30.5]} 22... Nd4 {[%clk 0:02:18.2]} 23. Qc3 {[%clk 0:01:23.8]} 23... Rfe8
{[%clk 0:01:56.5]} 24. Bh4 {[%clk 0:01:21]} 24... f6 {[%clk 0:01:51.6]} 25. Qd3
{[%clk 0:00:54]} 25... Qf7 {[%clk 0:01:41.4]} 26. Rf1 {[%clk 0:00:49]} 26... Nf5
{[%clk 0:01:40.5]} 27. Bxf6 {[%clk 0:00:39.6]} 27... Bxf6 {[%clk 0:01:38]} 28.
g4 {[%clk 0:00:38.8]} 28... e4 {[%clk 0:01:36.1]} 29. Qh3 {[%clk 0:00:28.4]}
29... Bd4+ {[%clk 0:01:21]} 30. Kh1 {[%clk 0:00:26.7]} 30... Rxd5 {[%clk
0:01:08]} 31. cxd5 {[%clk 0:00:15.5]} 31... e3 {[%clk 0:01:08.1]} 32. Rde1
{[%clk 0:00:08.9]} 32... Qxd5+ {[%clk 0:01:06.6]} 33. Qf3 {[%clk 0:00:09.3]}
33... Qxf3+ {[%clk 0:01:06.4]} 34. Rxf3 {[%clk 0:00:10.2]} 34... Nd6 {[%clk
0:01:06.4]} 35. Kg2 {[%clk 0:00:10.1]} 35... Nc4 {[%clk 0:01:03.2]} 36. b3
{[%clk 0:00:08.8]} 36... Nd2 {[%clk 0:01:03.3]} 37. Rf4 {[%clk 0:00:08.6]} 37...
Kg7 {[%clk 0:00:59.7]} 38. Re2 {[%clk 0:00:07.9]} 38... Ne4 {[%clk 0:00:58.8]}
39. Kf3 {[%clk 0:00:06.9]} 39... Nc3 {[%clk 0:00:57.7]} 40. b4 {[%clk
0:00:06.1]} 40... Nxe2 {[%clk 0:00:57]} 41. Kxe2 {[%clk 0:00:07]} 41... Rf8
{[%clk 0:00:52.2]} 42. Re4 {[%clk 0:00:06.8]} 42... Rf2+ {[%clk 0:00:51.9]} 43.
Ke1 {[%clk 0:00:06.1]} 43... Bc3+ {[%clk 0:00:50.9]} 44. Kd1 {[%clk 0:00:05.1]}
44... Rd2+ {[%clk 0:00:44.4]} 45. Kc1 {[%clk 0:00:04.3]} 45... Bd4 {[%clk
0:00:42]} 46. bxc5 {[%clk 0:00:03.4]} 46... bxc5 {[%clk 0:00:42]} 47. Re7+
{[%clk 0:00:04]} 47... Kf6 {[%clk 0:00:42.4]} 48. Re4 {[%clk 0:00:04.3]} 48...
Rxa2 {[%clk 0:00:41.4]} 0-1

[Event "Late-Titled-Tuesday-Blitz-February-27-2024"]
[Site "Chess.com"]
[Date "2024.02.27"]
[Round "9"]
[White "pfalcon1949"]
[Black "miraitrunks"]
[Result "0-1"]
[WhiteElo "1905"]
[BlackElo "2199"]
[TimeControl "180+1"]
[EndTime "15:44:15 PST"]
[Termination "miraitrunks won by resignation"]

1. e4 {[%clk 0:03:00.5]} 1... c5 {[%clk 0:03:00.2]} 2. Nf3 {[%clk 0:02:59.6]}
2... d6 {[%clk 0:03:00.8]} 3. d4 {[%clk 0:02:57.9]} 3... cxd4 {[%clk 0:03:01.7]}
4. Nxd4 {[%clk 0:02:57.6]} 4... Nf6 {[%clk 0:03:02.3]} 5. Nc3 {[%clk 0:02:54.4]}
5... g6 {[%clk 0:03:02]} 6. Be3 {[%clk 0:02:53]} 6... Bg7 {[%clk 0:02:57.6]} 7.
f3 {[%clk 0:02:52.5]} 7... O-O {[%clk 0:02:57.5]} 8. Bc4 {[%clk 0:02:52.3]} 8...
Nc6 {[%clk 0:02:57.9]} 9. Qe2 {[%clk 0:02:52.4]} 9... Nxd4 {[%clk 0:02:55.4]}
10. Bxd4 {[%clk 0:02:51.7]} 10... Be6 {[%clk 0:02:56.3]} 11. Bb3 {[%clk
0:02:48]} 11... a6 {[%clk 0:02:54.9]} 12. O-O-O {[%clk 0:02:47.6]} 12... Rc8
{[%clk 0:02:54.6]} 13. h4 {[%clk 0:02:47.2]} 13... Bxb3 {[%clk 0:02:52.9]} 14.
cxb3 {[%clk 0:02:45.2]} 14... Qa5 {[%clk 0:02:51.4]} 15. Kb1 {[%clk 0:02:43.7]}
15... Nh5 {[%clk 0:02:15.8]} 16. Bxg7 {[%clk 0:02:39.2]} 16... Kxg7 {[%clk
0:02:16.7]} 17. Rhe1 {[%clk 0:02:27.8]} 17... Rc6 {[%clk 0:01:47.4]} 18. g4
{[%clk 0:02:27.5]} 18... Nf4 {[%clk 0:01:46.9]} 19. Qd2 {[%clk 0:02:26.9]} 19...
Qe5 {[%clk 0:01:38.7]} 20. h5 {[%clk 0:02:16.9]} 20... Rfc8 {[%clk 0:01:35.9]}
21. hxg6 {[%clk 0:02:10.4]} 21... hxg6 {[%clk 0:01:35.1]} 22. Qd4 {[%clk
0:01:51.5]} 22... b5 {[%clk 0:01:28]} 23. Qxe5+ {[%clk 0:01:49.4]} 23... dxe5
{[%clk 0:01:28.9]} 24. Rd7 {[%clk 0:01:45.9]} 24... R8c7 {[%clk 0:01:26.9]} 25.
Red1 {[%clk 0:01:43.9]} 25... Ne6 {[%clk 0:01:18.4]} 26. Rxc7 {[%clk 0:01:41]}
26... Rxc7 {[%clk 0:01:18.1]} 27. Ne2 {[%clk 0:01:32.7]} 27... Ng5 {[%clk
0:01:11.8]} 28. Rd3 {[%clk 0:01:30.7]} 28... Rc8 {[%clk 0:01:11.1]} 29. a3
{[%clk 0:01:27.3]} 29... Rh8 {[%clk 0:01:11.1]} 30. f4 {[%clk 0:01:13.2]} 30...
exf4 {[%clk 0:01:05.8]} 31. Nxf4 {[%clk 0:01:13.2]} 31... Nxe4 {[%clk
0:01:05.2]} 32. Rd7 {[%clk 0:01:12.6]} 32... Rh1+ {[%clk 0:00:56.9]} 33. Ka2
{[%clk 0:01:10.5]} 33... Rg1 {[%clk 0:00:55.8]} 34. Rxe7 {[%clk 0:01:06.1]}
34... Rxg4 {[%clk 0:00:55.7]} 35. Rxe4 {[%clk 0:01:04.4]} 35... f5 {[%clk
0:00:50.5]} 36. Ne6+ {[%clk 0:01:00.7]} 36... Kf6 {[%clk 0:00:49]} 37. Rxg4
{[%clk 0:00:53.8]} 37... fxg4 {[%clk 0:00:49.9]} 38. Nf4 {[%clk 0:00:49.7]}
38... Kf5 {[%clk 0:00:48.7]} 39. Ng2 {[%clk 0:00:46.5]} 39... g3 {[%clk
0:00:49.2]} 40. b4 {[%clk 0:00:41.9]} 40... Kg4 {[%clk 0:00:39.9]} 41. Kb3
{[%clk 0:00:42.1]} 41... Kf3 {[%clk 0:00:40.4]} 42. Nh4+ {[%clk 0:00:40.6]}
42... Kf2 {[%clk 0:00:38.9]} 43. a4 {[%clk 0:00:35]} 43... g5 {[%clk 0:00:38.5]}
44. axb5 {[%clk 0:00:13]} 44... axb5 {[%clk 0:00:39.4]} 45. Ng2 {[%clk 0:00:05]}
45... Kxg2 {[%clk 0:00:38.2]} 46. Kc3 {[%clk 0:00:05.9]} 46... Kf2 {[%clk
0:00:38.6]} 47. Kd4 {[%clk 0:00:06.8]} 47... g2 {[%clk 0:00:39]} 48. Kc5 {[%clk
0:00:07.7]} 48... g1=Q {[%clk 0:00:39.6]} 49. Kxb5 {[%clk 0:00:08]} 49... Qc1
{[%clk 0:00:39.7]} 50. b3 {[%clk 0:00:08.3]} 50... g4 {[%clk 0:00:39.4]} 51. Ka5
{[%clk 0:00:08.6]} 51... g3 {[%clk 0:00:40.3]} 52. b5 {[%clk 0:00:09.5]} 52...
g2 {[%clk 0:00:41.2]} 53. b4 {[%clk 0:00:10.1]} 53... g1=Q {[%clk 0:00:42.1]}
54. Kb6 {[%clk 0:00:10.7]} 54... Kf3+ {[%clk 0:00:41.7]} 55. Kb7 {[%clk
0:00:10.5]} 55... Qg7+ {[%clk 0:00:39.7]} 56. Kb6 {[%clk 0:00:09.4]} 0-1

[Event "Late-Titled-Tuesday-Blitz-February-27-2024"]
[Site "Chess.com"]
[Date "2024.02.27"]
[Round "9"]
[White "northridgehawk"]
[Black "picturesquecheck"]
[Result "0-1"]
[WhiteElo "2279"]
[BlackElo "2421"]
[TimeControl "180+1"]
[EndTime "15:44:26 PST"]
[Termination "picturesquecheck won by checkmate"]

1. e4 {[%clk 0:02:56.4]} 1... e5 {[%clk 0:02:58.9]} 2. Bc4 {[%clk 0:02:44]} 2...
Nc6 {[%clk 0:02:56.8]} 3. Nc3 {[%clk 0:02:24.2]} 3... Bc5 {[%clk 0:02:53.7]} 4.
d3 {[%clk 0:02:23.7]} 4... Na5 {[%clk 0:02:43.8]} 5. Qf3 {[%clk 0:02:17.1]} 5...
Nxc4 {[%clk 0:02:42.8]} 6. dxc4 {[%clk 0:02:18]} 6... Ne7 {[%clk 0:02:34.8]} 7.
Nge2 {[%clk 0:02:17.3]} 7... O-O {[%clk 0:02:33.8]} 8. O-O {[%clk 0:02:15.5]}
8... d6 {[%clk 0:02:34]} 9. Ng3 {[%clk 0:02:13.2]} 9... Be6 {[%clk 0:02:33.2]}
10. b3 {[%clk 0:01:59.2]} 10... f5 {[%clk 0:02:32.9]} 11. exf5 {[%clk 0:01:58]}
11... Nxf5 {[%clk 0:02:32.8]} 12. Qxb7 {[%clk 0:01:55.1]} 12... Nd4 {[%clk
0:02:29.9]} 13. Nge4 {[%clk 0:01:50.8]} 13... Bb6 {[%clk 0:02:14.5]} 14. Bg5
{[%clk 0:01:48.3]} 14... Qe8 {[%clk 0:01:59.4]} 15. Nd5 {[%clk 0:01:33.1]} 15...
Rb8 {[%clk 0:01:46.6]} 16. Qa6 {[%clk 0:01:32.3]} 16... Bxd5 {[%clk 0:01:24.2]}
17. cxd5 {[%clk 0:01:31.6]} 17... Nxc2 {[%clk 0:01:24.3]} 18. Rac1 {[%clk
0:01:28.1]} 18... Nb4 {[%clk 0:01:24]} 19. Qc4 {[%clk 0:01:24.2]} 19... Qg6
{[%clk 0:01:20.1]} 20. Be3 {[%clk 0:01:16.9]} 20... Nxa2 {[%clk 0:01:05.6]} 21.
Ra1 {[%clk 0:01:13.5]} 21... Bxe3 {[%clk 0:01:01.6]} 22. Rxa2 {[%clk 0:00:59.7]}
22... Bb6 {[%clk 0:00:57.7]} 23. b4 {[%clk 0:00:49.3]} 23... Rf4 {[%clk
0:00:55.8]} 24. Re2 {[%clk 0:00:47.6]} 24... Rbf8 {[%clk 0:00:51.8]} 25. Qd3
{[%clk 0:00:43.5]} 25... Kh8 {[%clk 0:00:49.8]} 26. Qc2 {[%clk 0:00:32.9]} 26...
Rg4 {[%clk 0:00:46.8]} 27. Ng3 {[%clk 0:00:30.4]} 27... Qxc2 {[%clk 0:00:38.6]}
28. Rxc2 {[%clk 0:00:29.9]} 28... Rxb4 {[%clk 0:00:39.2]} 29. h3 {[%clk
0:00:24.7]} 29... Rd4 {[%clk 0:00:38.5]} 30. Kh2 {[%clk 0:00:21.1]} 30... Rxd5
{[%clk 0:00:38.3]} 31. f3 {[%clk 0:00:21.7]} 31... h6 {[%clk 0:00:37.3]} 32. Ne4
{[%clk 0:00:21.2]} 32... Rd3 {[%clk 0:00:36.8]} 33. Rfc1 {[%clk 0:00:20.1]}
33... a5 {[%clk 0:00:34.4]} 34. Rc6 {[%clk 0:00:19.2]} 34... a4 {[%clk
0:00:34.1]} 35. Nxd6 {[%clk 0:00:19.5]} 35... Rxd6 {[%clk 0:00:33.6]} 36. Rxd6
{[%clk 0:00:18.7]} 36... cxd6 {[%clk 0:00:34.5]} 37. Rc6 {[%clk 0:00:18.9]}
37... Bc5 {[%clk 0:00:34.8]} 38. Ra6 {[%clk 0:00:19.8]} 38... a3 {[%clk
0:00:34.2]} 39. Kg3 {[%clk 0:00:19.2]} 39... Rb8 {[%clk 0:00:33.5]} 40. Kg4
{[%clk 0:00:19.7]} 40... Rf8 {[%clk 0:00:31.8]} 41. g3 {[%clk 0:00:19.5]} 41...
Kh7 {[%clk 0:00:30.5]} 42. h4 {[%clk 0:00:20]} 42... g6 {[%clk 0:00:29.1]} 43.
Rc6 {[%clk 0:00:19]} 43... Kg7 {[%clk 0:00:29.1]} 44. Rc7+ {[%clk 0:00:19.4]}
44... Rf7 {[%clk 0:00:29.5]} 45. Rc8 {[%clk 0:00:19.6]} 45... h5+ {[%clk
0:00:27.5]} 46. Kh3 {[%clk 0:00:18.9]} 46... Rxf3 {[%clk 0:00:27.6]} 47. Kg2
{[%clk 0:00:19.8]} 47... Rf2+ {[%clk 0:00:27.6]} 48. Kh3 {[%clk 0:00:19.7]}
48... a2 {[%clk 0:00:28.2]} 49. Rg8+ {[%clk 0:00:19.1]} 49... Kf7 {[%clk
0:00:24.5]} 50. Rf8+ {[%clk 0:00:19.4]} 50... Ke6 {[%clk 0:00:24.7]} 51. Re8+
{[%clk 0:00:18.2]} 51... Kd7 {[%clk 0:00:24.4]} 52. Rd8+ {[%clk 0:00:18.2]}
52... Kc6 {[%clk 0:00:24.6]} 53. Rc8+ {[%clk 0:00:18.3]} 53... Kb5 {[%clk
0:00:24.7]} 54. Rxc5+ {[%clk 0:00:18]} 54... Kb4 {[%clk 0:00:21.7]} 55. Rb5+
{[%clk 0:00:18.4]} 55... Ka3 {[%clk 0:00:20.6]} 56. Ra5+ {[%clk 0:00:18.8]}
56... Kb3 {[%clk 0:00:18]} 57. Rb5+ {[%clk 0:00:19.3]} 57... Ka4 {[%clk
0:00:18.3]} 58. Ra5+ {[%clk 0:00:19.7]} 58... Kxa5 {[%clk 0:00:18.6]} 59. g4
{[%clk 0:00:18.4]} 59... a1=Q {[%clk 0:00:18.6]} 60. gxh5 {[%clk 0:00:18.3]}
60... Qg1 {[%clk 0:00:18.1]} 61. hxg6 {[%clk 0:00:17.9]} 61... Rh2# {[%clk
0:00:19]} 0-1

[Event "Late-Titled-Tuesday-Blitz-February-27-2024"]
[Site "Chess.com"]
[Date "2024.02.27"]
[Round "9"]
[White "maximnovik"]
[Black "WPWPWP-2015"]
[Result "1-0"]
[WhiteElo "2598"]
[BlackElo "2445"]
[TimeControl "180+1"]
[EndTime "15:44:29 PST"]
[Termination "maximnovik won on time"]

1. c4 {[%clk 0:03:00.9]} 1... e5 {[%clk 0:02:58.7]} 2. b3 {[%clk 0:03:00.6]}
2... Nf6 {[%clk 0:02:59.1]} 3. Bb2 {[%clk 0:03:00.4]} 3... Nc6 {[%clk
0:02:59.6]} 4. e3 {[%clk 0:03:01]} 4... Be7 {[%clk 0:02:59.1]} 5. Nf3 {[%clk
0:02:58.9]} 5... d6 {[%clk 0:02:59]} 6. Be2 {[%clk 0:02:56.7]} 6... O-O {[%clk
0:02:59]} 7. O-O {[%clk 0:02:56.1]} 7... Bf5 {[%clk 0:02:58.9]} 8. d4 {[%clk
0:02:54]} 8... e4 {[%clk 0:02:55.9]} 9. Nfd2 {[%clk 0:02:45.8]} 9... Re8 {[%clk
0:02:54.1]} 10. Nc3 {[%clk 0:02:45.1]} 10... h6 {[%clk 0:02:53.2]} 11. a3 {[%clk
0:02:29.8]} 11... Bf8 {[%clk 0:02:49]} 12. b4 {[%clk 0:02:29.1]} 12... a6 {[%clk
0:02:48.9]} 13. Qc2 {[%clk 0:02:12.8]} 13... Bg6 {[%clk 0:02:46.1]} 14. Rfc1
{[%clk 0:02:06]} 14... Qd7 {[%clk 0:02:45]} 15. b5 {[%clk 0:01:49.6]} 15... Nb8
{[%clk 0:02:21.7]} 16. a4 {[%clk 0:01:48.6]} 16... Qf5 {[%clk 0:02:15.3]} 17. h3
{[%clk 0:01:42.2]} 17... Qg5 {[%clk 0:02:11.1]} 18. Nd5 {[%clk 0:01:24.5]} 18...
Nxd5 {[%clk 0:01:27.2]} 19. cxd5 {[%clk 0:01:24.4]} 19... Re7 {[%clk 0:01:26.6]}
20. Qb3 {[%clk 0:01:14.1]} 20... a5 {[%clk 0:01:21.6]} 21. b6 {[%clk 0:01:12.6]}
21... c6 {[%clk 0:01:18.2]} 22. Bc4 {[%clk 0:00:56.2]} 22... Bf5 {[%clk
0:01:09.8]} 23. Kf1 {[%clk 0:00:42.8]} 23... Qh4 {[%clk 0:01:04.4]} 24. Ba3
{[%clk 0:00:34]} 24... Rd7 {[%clk 0:01:03.5]} 25. dxc6 {[%clk 0:00:29.3]} 25...
Nxc6 {[%clk 0:00:57.9]} 26. Bb5 {[%clk 0:00:29.1]} 26... d5 {[%clk 0:00:33.7]}
27. Rxc6 {[%clk 0:00:25.7]} 27... bxc6 {[%clk 0:00:15.5]} 28. Bxc6 {[%clk
0:00:25.7]} 28... Rb8 {[%clk 0:00:03.6]} 29. Bxd7 {[%clk 0:00:25.6]} 29... Bxd7
{[%clk 0:00:03.4]} 30. Bxf8 {[%clk 0:00:26.1]} 30... Kxf8 {[%clk 0:00:02.1]} 31.
Rc1 {[%clk 0:00:23.1]} 31... Qe7 {[%clk 0:00:02.2]} 32. Rc5 {[%clk 0:00:22.1]}
32... Qd6 {[%clk 0:00:02.3]} 33. b7 {[%clk 0:00:20.8]} 33... Ke7 {[%clk
0:00:01.9]} 34. Rxd5 {[%clk 0:00:18.5]} 34... Qa6+ {[%clk 0:00:02]} 35. Kg1
{[%clk 0:00:15.3]} 35... Rxb7 {[%clk 0:00:02.4]} 36. Qa3+ {[%clk 0:00:15.5]}
36... Kd8 {[%clk 0:00:02.2]} 37. Qf8+ {[%clk 0:00:14.6]} 37... Kc7 {[%clk
0:00:02.7]} 38. Rc5+ {[%clk 0:00:15.1]} 38... Bc6 {[%clk 0:00:02.4]} 39. Qe7+
{[%clk 0:00:14.3]} 39... Kb8 {[%clk 0:00:02.8]} 40. Qd8+ {[%clk 0:00:14.2]}
40... Ka7 {[%clk 0:00:03]} 41. Nc4 {[%clk 0:00:14.4]} 41... Qxc4 {[%clk
0:00:02.6]} 42. Rxc4 {[%clk 0:00:13.1]} 42... Rb1+ {[%clk 0:00:02.5]} 43. Kh2
{[%clk 0:00:13.1]} 43... Bb7 {[%clk 0:00:02.7]} 44. Rc5 {[%clk 0:00:13.1]} 44...
Rb6 {[%clk 0:00:02.3]} 45. Rxa5+ {[%clk 0:00:13.2]} 45... Ba6 {[%clk 0:00:02.2]}
46. Rc5 {[%clk 0:00:12.7]} 46... Bb7 {[%clk 0:00:02.2]} 47. Rc7 {[%clk
0:00:12.9]} 47... Rb4 {[%clk 0:00:02]} 48. a5 {[%clk 0:00:13]} 1-0